bitfinex-derivatives/quotes_BTCF0:USTF0_20250402
["timestamp","ask_amount","ask_price","bid_price","bid_amount"]
[1743606905153,0.1303,86271.0,86242.0,0.3608]
[1743606905361,0.1322,86269.0,86268.0,0.3608]
[1743606905561,0.26226317,86269.0,86268.0,0.3608]
[1743606905757,0.26310317,86269.0,86268.0,0.36164]
[1743606905955,0.13304,86269.0,86268.0,0.36164]
[1743606906670,0.00084,86269.0,86268.0,0.63164]
[1743606907159,0.00084,86269.0,86268.0,0.36164]
[1743606907360,0.00084,86269.0,86268.0,0.62334]
[1743606907560,0.12864152,86269.0,86268.0,0.37046321]
[1743606907764,0.12864152,86269.0,86268.0,0.00966321]
[1743606908060,0.12864152,86269.0,86268.0,0.00882321]
[1743606908266,0.12864152,86269.0,86268.0,0.3608]
[1743606908464,0.12864152,86269.0,86268.0,0.45164]
[1743606908657,0.00084,86269.0,86268.0,0.45164]
[1743606909161,0.00084,86269.0,86268.0,0.36164]
[1743606910663,0.00084,86269.0,86268.0,0.3702693]
[1743606910864,0.00084,86269.0,86268.0,0.6502693]
[1743606911063,0.00017393,86277.0,86268.0,0.6502693]
[1743606911266,0.00017393,86277.0,86276.0,0.3608]
[1743606911573,0.00017393,86277.0,86276.0,0.46164]
[1743606913272,0.3608,86315.0,86276.0,0.86038947]
[1743606913463,0.1287,86304.0,86301.0,0.3608]
[1743606913665,0.12309449,86304.0,86302.0,0.251]
[1743606913862,0.1287,86303.0,86302.0,0.251]
[1743606914071,0.1287,86303.0,86302.0,0.00084]
[1743606914376,0.37117584,86303.0,86290.0,0.3608]
[1743606914575,0.3608,86299.0,86294.0,0.00017383]
[1743606914780,0.2494,86298.0,86269.0,0.1291]
[1743606914973,0.15487629,86280.0,86270.0,0.1246]
[1743606915271,0.2494,86279.0,86276.0,0.3608]
[1743606915475,0.13007937,86279.0,86276.0,0.46144]
[1743606915768,0.2443,86287.0,86277.0,0.2528]
[1743606915977,0.00017383,86286.0,86277.0,0.2534]
[1743606916268,0.13021321,86286.0,86277.0,0.2534]
[1743606916472,0.37541321,86286.0,86277.0,0.3534]
[1743606917167,0.25381321,86286.0,86277.0,0.3534]
[1743606917380,0.00017383,86286.0,86283.0,0.3608]
[1743606917581,0.00017383,86286.0,86284.0,0.2501]
[1743606917582,0.00117383,86286.0,86284.0,0.2501]
[1743606917764,0.00017383,86286.0,86284.0,0.4907]
[1743606918370,0.00902987,86294.0,86284.0,0.4907]
[1743606918677,0.00902987,86294.0,86293.0,0.3608]
[1743606918879,0.00902987,86294.0,86293.0,0.4714]
[1743606919073,0.1216,86309.0,86293.0,0.4714]
[1743606919272,0.124,86300.0,86294.0,0.253]
[1743606919475,0.124,86300.0,86294.0,0.2528]
[1743606919667,0.0004,86297.0,86294.0,0.3628]
[1743606921175,0.132,86308.0,86294.0,0.3628]
[1743606921176,0.00017383,86310.0,86294.0,0.3628]
[1743606921374,0.00017383,86310.0,86309.0,0.3608]
[1743606921573,0.132,86327.0,86309.0,0.68144]
[1743606921779,0.1299,86326.0,86323.0,0.3608]
[1743606921976,0.1309,86326.0,86324.0,0.1233]
[1743606922181,0.1309,86326.0,86324.0,0.1239]
[1743606922480,0.1309,86326.0,86324.0,0.2239]
[1743606922678,0.0004,86329.0,86325.0,0.1251]
[1743606922876,0.0004,86329.0,86325.0,0.4957]
[1743606923073,0.0004,86329.0,86326.0,0.2529]
[1743606923273,0.0004,86345.0,86326.0,0.66319797]
[1743606923573,0.0004,86345.0,86344.0,0.3608]
[1743606923873,0.0004,86345.0,86344.0,0.3614]
[1743606924284,0.1236001,86345.0,86344.0,0.3614]
[1743606924473,0.12456011,86345.0,86344.0,0.3614]
[1743606924885,0.00136001,86345.0,86344.0,0.4714]
[1743606925068,0.0004,86345.0,86344.0,0.4714]
[1743606926275,0.0004,86345.0,86344.0,0.3614]
[1743606926876,0.0004,86345.0,86344.0,0.4514]
[1743606927178,0.12266833,86345.0,86344.0,0.3614]
[1743606927388,0.12266833,86345.0,86344.0,0.0006]
[1743606927790,0.12266833,86345.0,86344.0,0.0906]
[1743606928180,0.0004,86345.0,86344.0,0.0906]
[1743606928382,0.0004,86345.0,86344.0,0.0006]
[1743606928986,0.0004,86345.0,86344.0,0.1006]
[1743606929191,0.0004,86345.0,86344.0,0.0006]
[1743606929394,0.0004,86345.0,86344.0,0.1006]
[1743606930401,0.0004,86345.0,86344.0,0.2308]
[1743606930794,0.0004,86345.0,86344.0,0.1308]
[1743606931096,0.13247393,86345.0,86335.0,0.3608]
[1743606931294,0.13247393,86345.0,86336.0,0.00077372]
[1743606931295,0.2537,86344.0,86336.0,0.00077372]
[1743606931489,0.25482001,86344.0,86336.0,0.00017372]
[1743606931693,0.12381623,86343.0,86336.0,0.00017372]
[1743606931882,0.12493624,86343.0,86342.0,0.7216]
[1743606932087,0.0004,86361.0,86342.0,1.1922]
[1743606932394,0.1296,86352.0,86343.0,0.2593]
[1743606932595,0.1296,86352.0,86351.0,0.3608]
[1743606932795,0.1304,86352.0,86351.0,0.5614]
[1743606935898,0.1296,86352.0,86351.0,0.5614]
[1743606936903,0.01857769,86360.0,86351.0,0.5614]
[1743606937093,0.01857769,86360.0,86359.0,0.3608]
[1743606937400,0.01857769,86360.0,86359.0,0.3614]
[1743606937599,0.01857769,86360.0,86359.0,0.4514]
[1743606937805,0.01857769,86360.0,86359.0,0.4714]
[1743606938003,0.0004,86361.0,86359.0,0.4714]
[1743606938307,0.0004,86361.0,86360.0,0.2584]
[1743606938492,0.0004,86361.0,86360.0,0.36904]
[1743606938691,0.0004,86361.0,86360.0,0.25904]
[1743606939200,0.0004,86361.0,86360.0,0.36904]
[1743606939404,0.0004,86361.0,86360.0,0.25904]
[1743606940400,0.0004,86361.0,86360.0,0.35904]
[1743606941098,0.0004,86361.0,86360.0,0.25904]
[1743606941299,0.0004,86361.0,86360.0,0.36904]
[1743606942016,0.0004,86361.0,86360.0,0.25904]
[1743606943095,0.0004,86361.0,86360.0,0.00064]
[1743606943301,0.13388589,86361.0,86360.0,0.00064]
[1743606943604,0.13468589,86361.0,86360.0,0.00064]
[1743606944211,0.14116476,86361.0,86360.0,0.00064]
[1743606945701,0.14036476,86361.0,86360.0,0.00064]
[1743606947313,0.14120476,86361.0,86360.0,0.00064]
[1743606947509,0.22916476,86361.0,86360.0,0.00064]
[1743606947701,0.23000476,86361.0,86360.0,0.00064]
[1743606948309,0.14120476,86361.0,86360.0,0.00064]
[1743606949009,0.14120476,86361.0,86360.0,0.10064]
[1743606949207,0.00771887,86361.0,86360.0,0.35764]
[1743606949416,0.00687887,86361.0,86360.0,0.24764]
[1743606949607,0.00687887,86361.0,86360.0,0.35764]
[1743606951507,0.0004,86377.0,86360.0,0.35764]
[1743606951508,0.0004,86377.0,86360.0,0.46753401]
[1743606951708,0.0004,86377.0,86376.0,0.3608]
[1743606951909,0.0012,86377.0,86376.0,0.4514]
[1743606952211,0.0012,86377.0,86376.0,0.4614]
[1743606952212,0.12261752,86377.0,86376.0,0.4614]
[1743606952908,0.12261752,86377.0,86376.0,0.3614]
[1743606953507,0.12261752,86377.0,86376.0,0.4614]
[1743606954313,0.1311,86388.0,86376.0,0.4614]
[1743606954617,0.13174,86388.0,86383.0,0.3608]
[1743606954816,0.25661871,86387.0,86384.0,0.261]
[1743606955015,0.13359871,86387.0,86384.0,0.37168]
[1743606955322,0.1311,86398.0,86384.0,0.38017]
[1743606955513,0.26320001,86398.0,86395.0,0.3608]
[1743606955713,0.39089084,86398.0,86396.0,0.2542]
[1743606955925,0.39089084,86398.0,86396.0,0.1224]
[1743606956113,0.26320001,86398.0,86396.0,0.1224]
[1743606956312,0.12769083,86397.0,86396.0,0.0006]
[1743606956520,0.12833083,86397.0,86396.0,0.0006]
[1743606956817,0.38093083,86397.0,86396.0,0.0006]
[1743606958019,0.13859234,86397.0,86396.0,0.0006]
[1743606958208,0.26394994,86397.0,86396.0,0.0006]
[1743606958922,0.0008,86397.0,86396.0,0.43775091]
[1743606959123,0.1242,86406.0,86396.0,0.53775091]
[1743606959324,0.1205,86417.0,86396.0,0.53775091]
[1743606959519,0.1242,86408.0,86405.0,0.3608]
[1743606959727,0.24835671,86408.0,86406.0,0.1229]
[1743606959928,0.24835671,86408.0,86406.0,0.00084]
[1743606960123,0.24835671,86408.0,86397.0,0.1229]
[1743606960320,0.24835671,86408.0,86397.0,0.1237]
[1743606961219,0.3608,86404.0,86397.0,0.1237]
[1743606961415,0.2529,86403.0,86397.0,0.1237]
[1743606961617,0.37810272,86403.0,86397.0,0.0008]
[1743606961926,0.08876,86402.0,86397.0,0.0008]
[1743606962115,0.08956,86402.0,86397.0,0.0008]
[1743606962316,0.50260272,86401.0,86397.0,0.0008]
[1743606962514,0.50348272,86401.0,86397.0,0.0008]
[1743606963016,0.25488272,86401.0,86400.0,0.3608]
[1743606963217,0.12440272,86401.0,86400.0,0.3616]
[1743606963418,0.12440272,86401.0,86400.0,0.0008]
[1743606963725,0.0008,86401.0,86400.0,0.3616]
[1743606964124,0.1199,86406.0,86400.0,0.3616]
[1743606964332,0.13208694,86401.0,86400.0,0.0008]
[1743606964525,0.0008,86401.0,86400.0,0.0008]
[1743606965027,0.13393654,86401.0,86400.0,0.0008]
[1743606966618,0.38303654,86401.0,86400.0,0.0008]
[1743606967027,1.17475654,86401.0,86391.0,1e-08]
[1743606967233,1.17475654,86401.0,86361.0,0.3608]
[1743606967234,0.1922,86391.0,86373.0,0.00876438]
[1743606967422,0.1922,86391.0,86369.0,0.06783843]
[1743606967423,0.86208606,86384.0,86369.0,0.06783843]
[1743606967724,0.1922,86369.0,86327.0,0.3608]
[1743606967925,0.3608,86358.0,86357.0,0.48055327]
[1743606968125,0.37568423,86368.0,86357.0,0.48055327]
[1743606968320,0.2475,86366.0,86358.0,0.2583]
[1743606968619,0.00625705,86365.0,86358.0,0.2591]
[1743606968828,0.08872,86364.0,86358.0,0.2591]
[1743606969018,0.3608,86360.0,86358.0,0.1301]
[1743606969223,0.0008,86360.0,86358.0,0.1301]
[1743606969420,0.24524138,86359.0,86358.0,0.1301]
[1743606969731,0.24604138,86359.0,86358.0,0.1301]
[1743606969955,0.46678235,86359.0,86358.0,0.1301]
[1743606970138,0.82758235,86359.0,86358.0,0.0008]
[1743606970325,0.82758235,86359.0,86354.0,0.00017362]
[1743606970832,0.1242,86358.0,86354.0,0.00017362]
[1743606971025,0.00622097,86357.0,86354.0,0.00077362]
[1743606971225,0.08872,86356.0,86354.0,0.00077362]
[1743606971423,0.08956,86356.0,86354.0,0.00077362]
[1743606971625,0.12843548,86355.0,86354.0,0.00077362]
[1743606972131,0.12301451,86355.0,86354.0,0.00077362]
[1743606972623,0.21173451,86355.0,86354.0,0.00017362]
[1743606972819,0.57253451,86355.0,86354.0,0.00105362]
[1743606973024,0.57875091,86355.0,86354.0,0.00017362]
[1743606974634,0.57875091,86355.0,86354.0,0.00077362]
[1743606975229,0.72253451,86355.0,86321.0,0.3608]
[1743606975430,0.3608,86350.0,86321.0,0.3608]
[1743606975731,0.3608,86340.0,86325.0,0.1269]
[1743606976029,0.47670432,86339.0,86325.0,0.1269]
[1743606976236,0.47750432,86339.0,86325.0,0.1269]
[1743606976434,0.47750432,86339.0,86327.0,0.00017372]
[1743606977336,0.38878432,86339.0,86327.0,0.00017372]
[1743606977738,0.08872,86338.0,86327.0,0.00017372]
[1743606977934,0.08872,86337.0,86327.0,0.00017372]
[1743606978122,0.46224052,86337.0,86327.0,0.00017372]
[1743606978437,0.37352052,86337.0,86327.0,0.00017372]
[1743606978634,0.22142,86336.0,86327.0,0.00017372]
[1743606978936,0.08872,86335.0,86327.0,0.00017372]
[1743606979132,0.37261494,86335.0,86327.0,0.00017372]
[1743606979537,0.08876,86334.0,86327.0,0.00017372]
[1743606979738,0.08956,86334.0,86327.0,0.00017372]
[1743606979936,0.45952712,86334.0,86327.0,0.00017372]
[1743606980338,0.34750113,86334.0,86327.0,0.00017372]
[1743606981933,0.12476712,86334.0,86329.0,0.3608]
[1743606982243,0.12476712,86334.0,86333.0,0.00116124]
[1743606982447,0.12396712,86334.0,86333.0,0.00116124]
[1743606982833,0.12637901,86343.0,86333.0,0.00116124]
[1743606983034,0.12717901,86343.0,86333.0,0.00116124]
[1743606983245,0.0008,86343.0,86333.0,0.00116124]
[1743606983436,0.12460134,86342.0,86333.0,0.00116124]
[1743606983753,0.12540134,86342.0,86336.0,0.3608]
[1743606984038,0.12460134,86342.0,86337.0,0.2436]
[1743606984239,0.2502,86359.0,86337.0,0.2436]
[1743606984240,0.12460134,86343.0,86337.0,0.2442]
[1743606984438,0.0008,86343.0,86337.0,0.2542]
[1743606984652,0.08876,86355.0,86337.0,0.2542]
[1743606984944,0.12263117,86342.0,86337.0,0.2542]
[1743606985149,0.12263117,86344.0,86337.0,0.2542]
[1743606985334,0.00084,86344.0,86337.0,0.2542]
[1743606985536,0.1224,86354.0,86337.0,0.2542]
[1743606985741,0.12565425,86344.0,86337.0,0.2542]
[1743606985941,0.12649425,86344.0,86337.0,0.2542]
[1743606986144,0.3608,86364.0,86343.0,0.3608]
[1743606986347,0.08872,86361.0,86343.0,0.48148]
[1743606986640,0.08932001,86361.0,86355.0,0.3608]
[1743606986836,0.12437697,86360.0,86356.0,0.2539]
[1743606987040,0.12505697,86360.0,86356.0,0.25458]
[1743606989953,0.12505697,86360.0,86359.0,0.3608]
[1743606990154,0.12437697,86360.0,86359.0,0.3608]
[1743606990456,0.12437697,86360.0,86359.0,0.3614]
[1743606990839,0.12523985,86366.0,86359.0,0.3614]
[1743606991144,0.00060001,86366.0,86359.0,0.3614]
[1743606991345,0.12523985,86366.0,86359.0,0.8122]
[1743606991646,0.00017352,86367.0,86359.0,0.8122]
[1743606991852,0.00017352,86367.0,86366.0,0.3608]
[1743606992038,0.00017352,86367.0,86366.0,0.36144]
[1743606992353,0.00017352,86367.0,86366.0,0.47144]
[1743606992935,0.08872,86395.0,86366.0,0.50144]
[1743606993136,0.00060001,86390.0,86380.0,0.3608]
[1743606993336,0.12809407,86388.0,86381.0,0.1295]
[1743606993746,0.13000001,86388.0,86381.0,0.1301]
[1743606993953,0.13326914,86387.0,86381.0,0.1301]
[1743606994251,0.13394914,86387.0,86381.0,0.1301]
[1743606994651,0.1267,86386.0,86381.0,0.1301]
[1743606994856,0.3608,86382.0,86356.0,0.3608]
[1743606995146,0.15454303,86380.0,86359.0,0.1295]
[1743606995353,0.2578,86379.0,86359.0,0.1301]
[1743606995554,0.3890714,86379.0,86359.0,0.1301]
[1743606995941,0.00630138,86378.0,86363.0,0.3608]
[1743606996145,0.00702138,86378.0,86364.0,0.126]
[1743606996447,0.3883514,86377.0,86364.0,0.12676]
[1743606996649,0.39537278,86377.0,86365.0,0.1289]
[1743606996856,0.3608,86370.0,86365.0,0.1295]
[1743606997043,0.00072,86370.0,86366.0,0.126]
[1743606997243,0.12520872,86369.0,86367.0,0.1289]
[1743606997443,0.12520872,86369.0,86368.0,0.126]
[1743606997651,0.12610804,86376.0,86368.0,0.1266]
[1743606997949,0.00076,86376.0,86368.0,0.1266]
[1743606998149,0.1252,86375.0,86368.0,0.1266]
[1743606998339,0.126,86375.0,86368.0,0.1266]
[1743606998648,0.12128601,86374.0,86368.0,0.1266]
[1743606998852,0.33586601,86374.0,86368.0,0.1266]
[1743606999045,0.1252,86373.0,86368.0,0.1266]
[1743606999348,0.126,86373.0,86368.0,0.1266]
[1743606999558,0.24638601,86372.0,86369.0,0.1286]
[1743606999848,0.24710601,86372.0,86369.0,0.1292]
[1743607000250,0.1252,86371.0,86369.0,0.1292]
[1743607000454,0.126,86371.0,86369.0,0.1292]
[1743607000639,0.25540192,86370.0,86369.0,0.1292]
[1743607000845,0.25612192,86370.0,86369.0,0.1292]
[1743607001957,0.25612192,86370.0,86369.0,0.0006]
[1743607002142,0.26257342,86370.0,86369.0,0.0006]
[1743607002544,0.27715757,86370.0,86369.0,0.0006]
[1743607002749,0.36583757,86370.0,86369.0,0.0006]
[1743607002956,0.27715757,86370.0,86369.0,0.0006]
[1743607003158,0.15205757,86370.0,86369.0,0.0006]
[1743607003351,0.13747342,86370.0,86369.0,0.0006]
[1743607003654,0.10380205,86392.0,86369.0,0.1006]
[1743607003848,0.01465579,86391.0,86388.0,0.3608]
[1743607004049,0.14215191,86390.0,86389.0,0.2588]
[1743607004250,0.12817612,86390.0,86389.0,0.25948]
[1743607004453,0.00068,86390.0,86389.0,0.25948]
[1743607004651,0.1247929,86390.0,86389.0,0.25948]
[1743607004848,0.1254329,86390.0,86389.0,0.25948]
[1743607005054,0.00064,86390.0,86389.0,0.25948]
[1743607005358,0.1254329,86390.0,86389.0,0.25948]
[1743607006054,0.2140729,86390.0,86389.0,0.00068]
[1743607006249,0.1254329,86390.0,86381.0,0.00017372]
[1743607006450,0.35204,86389.0,86381.0,0.00017372]
[1743607006656,0.35276,86389.0,86381.0,0.00085372]
[1743607006852,0.13419272,86388.0,86381.0,0.00085372]
[1743607007060,0.13491272,86388.0,86381.0,0.00085372]
[1743607007360,0.12859299,86388.0,86386.0,0.3608]
[1743607007561,0.12859299,86388.0,86387.0,0.2483]
[1743607007859,0.00017372,86392.0,86387.0,0.11064]
[1743607008155,0.12123381,86388.0,86387.0,0.00064]
[1743607008359,0.12123381,86388.0,86381.0,0.00017372]
[1743607008360,0.00072,86388.0,86381.0,0.00017372]
[1743607008558,0.09576025,86388.0,86381.0,0.00077372]
[1743607008760,0.21144736,86387.0,86381.0,0.00077372]
[1743607009059,0.12360736,86387.0,86386.0,0.3608]
[1743607009260,0.0008,86387.0,86386.0,0.36148]
[1743607009457,0.00017372,86392.0,86386.0,0.36148]
[1743607009763,0.00017372,86392.0,86390.0,0.3608]
[1743607009956,0.12128509,86391.0,86390.0,0.5914]
[1743607010263,0.00017372,86392.0,86390.0,0.5914]
[1743607010567,0.00017372,86392.0,86391.0,0.122]
[1743607010754,0.00017372,86392.0,86391.0,0.25300436]
[1743607012162,0.00017372,86392.0,86391.0,0.26300436]
[1743607013458,0.00017372,86392.0,86391.0,0.13064]
[1743607013652,0.12715318,86392.0,86391.0,0.00064]
[1743607013847,0.00093372,86392.0,86391.0,0.00064]
[1743607014056,0.00017372,86392.0,86391.0,0.00064]
[1743607014353,0.00017372,86392.0,86391.0,0.10098154]
[1743607014670,0.00017372,86392.0,86391.0,0.46178154]
[1743607014852,0.0004,86409.0,86391.0,0.46178154]
[1743607015058,0.0004,86409.0,86404.0,0.3608]
[1743607015059,0.01468494,86408.0,86404.0,0.3608]
[1743607015268,0.13906745,86407.0,86404.0,0.3614]
[1743607015563,0.01468494,86406.0,86404.0,0.3614]
[1743607015760,0.01540494,86406.0,86404.0,0.3614]
[1743607015969,0.01468494,86405.0,86404.0,0.3614]
[1743607016259,0.01540494,86405.0,86404.0,0.4614]
[1743607016461,0.15454303,86440.0,86404.0,0.6914]
[1743607016654,0.1307,86429.0,86424.0,0.3608]
[1743607016850,0.01579576,86425.0,86424.0,0.36144]
[1743607017050,0.14641581,86425.0,86424.0,0.36144]
[1743607017467,0.13166005,86425.0,86424.0,0.47144]
[1743607017858,0.14636468,86425.0,86424.0,0.36144]
[1743607018268,0.13166005,86425.0,86424.0,0.36144]
[1743607018460,0.13166005,86425.0,86424.0,0.46144]
[1743607018764,0.0004,86425.0,86424.0,0.64144]
[1743607019072,0.0004,86441.0,86424.0,0.64144]
[1743607019260,0.0004,86441.0,86431.0,0.3608]
[1743607019565,0.10426833,86432.0,86431.0,0.58144]
[1743607021064,0.00064,86432.0,86431.0,0.58144]
[1743607021264,0.0004,86441.0,86431.0,0.68144]
[1743607021461,0.0004,86441.0,86440.0,0.3608]
[1743607021763,0.0004,86441.0,86440.0,0.36168]
[1743607021966,0.0004,86441.0,86440.0,0.46168]
[1743607022268,0.0004,86441.0,86440.0,0.36168]
[1743607022962,0.0004,86441.0,86440.0,0.47168]
[1743607023364,0.0004,86441.0,86440.0,0.36168]
[1743607024567,0.12702425,86441.0,86440.0,0.00088]
[1743607024772,0.12702425,86441.0,86432.0,0.25]
[1743607024773,0.12770425,86441.0,86432.0,0.25]
[1743607025077,0.2592,86440.0,86432.0,0.25084]
[1743607025365,0.25954627,86440.0,86432.0,0.25084]
[1743607025667,0.12161671,86439.0,86432.0,0.12144]
[1743607025866,0.12245671,86439.0,86432.0,0.00084]
[1743607026059,0.3608,86433.0,86422.0,0.3608]
[1743607026259,0.1277,86432.0,86423.0,0.1226]
[1743607026459,0.25189695,86432.0,86423.0,0.1226]
[1743607026660,0.25189695,86432.0,86423.0,0.00092]
[1743607026860,0.25189695,86432.0,86427.0,0.3608]
[1743607027060,0.12419695,86432.0,86428.0,0.2435]
[1743607027361,0.12419695,86432.0,86428.0,0.24434]
[1743607027556,0.1277,86435.0,86428.0,0.24434]
[1743607027773,0.1277,86435.0,86434.0,0.3608]
[1743607027963,0.12572042,86439.0,86434.0,0.36168]
[1743607028267,0.00084,86439.0,86438.0,0.3608]
[1743607028468,0.0004,86441.0,86438.0,0.37172]
[1743607028967,0.12779761,86439.0,86438.0,0.00092]
[1743607029272,0.00084,86439.0,86438.0,0.00092]
[1743607029574,0.12925688,86439.0,86438.0,0.00092]
[1743607029874,0.13017688,86439.0,86438.0,0.00092]
[1743607030088,0.00092,86439.0,86438.0,0.00092]
[1743607030372,0.38987688,86439.0,86421.0,0.1288]
[1743607030585,0.3608,86434.0,86421.0,0.1294]
[1743607030772,0.2519,86433.0,86421.0,0.1294]
[1743607031067,0.38406919,86433.0,86421.0,0.1294]
[1743607032069,0.25556919,86433.0,86426.0,0.3608]
[1743607032268,0.12400001,86433.0,86427.0,0.1292]
[1743607032567,0.12400001,86433.0,86427.0,0.1298]
[1743607033275,0.12400001,86433.0,86427.0,0.0006]
[1743607033573,0.00060001,86433.0,86427.0,0.0006]
[1743607033767,0.00060001,86433.0,86427.0,0.57912]
[1743607033969,0.0004,86441.0,86427.0,0.96002]
[1743607034279,0.0004,86441.0,86439.0,0.3608]
[1743607034573,0.0004,86441.0,86440.0,0.1292]
[1743607034774,0.0004,86441.0,86440.0,0.00076]
[1743607034981,0.12783889,86441.0,86440.0,0.00076]
[1743607035170,0.12867889,86441.0,86440.0,0.00076]
[1743607035478,0.00124,86441.0,86440.0,0.00076]
[1743607035775,0.0004,86441.0,86440.0,0.00076]
[1743607036775,0.12488235,86441.0,86440.0,0.00076]
[1743607037075,0.12488235,86441.0,86425.0,0.125]
[1743607037267,0.3608,86437.0,86425.0,0.1256]
[1743607037468,0.3608,86437.0,86429.0,0.3608]
[1743607037469,0.2509,86436.0,86429.0,0.3608]
[1743607037662,0.38239498,86436.0,86429.0,0.36144]
[1743607038375,0.00618154,86435.0,86429.0,0.36144]
[1743607038567,0.00682154,86435.0,86429.0,0.00064]
[1743607038767,0.38307371,86434.0,86429.0,0.00064]
[1743607038976,0.38379371,86434.0,86429.0,0.00064]
[1743607039376,0.74290761,86434.0,86429.0,0.00064]
[1743607039574,0.00618154,86433.0,86429.0,0.00064]
[1743607039777,0.00682154,86433.0,86429.0,0.00064]
[1743607039981,0.2498046,86432.0,86429.0,0.00064]
[1743607040173,0.25598614,86432.0,86429.0,0.25054]
[1743607040672,0.2498046,86432.0,86429.0,0.25054]
[1743607041375,0.00610882,86431.0,86429.0,0.25054]
[1743607041576,0.00674882,86431.0,86429.0,0.25054]
[1743607041880,0.1224,86430.0,86429.0,0.25054]
[1743607042077,0.24701403,86430.0,86429.0,0.00064]
[1743607042580,0.36831403,86430.0,86420.0,0.3608]
[1743607042775,0.36831403,86430.0,86420.0,0.36144]
[1743607042979,0.00610897,86429.0,86420.0,0.36144]
[1743607043180,0.00674897,86429.0,86420.0,0.36144]
[1743607043388,0.37162253,86428.0,86420.0,0.36144]
[1743607043576,0.3783715,86428.0,86420.0,0.36144]
[1743607043881,0.08848,86427.0,86420.0,0.36144]
[1743607044179,0.3608,86424.0,86414.0,0.27100988]
[1743607044379,0.3608,86417.0,86414.0,0.26971615]
[1743607044688,0.3608,86417.0,86414.0,0.27031615]
[1743607044689,0.12805301,86416.0,86414.0,0.27031615]
[1743607044889,0.39066198,86416.0,86414.0,0.27031615]
[1743607045389,0.39066198,86416.0,86414.0,0.0006]
[1743607045690,0.00610897,86415.0,86414.0,0.0006]
[1743607045878,0.00710897,86415.0,86414.0,0.6184]
[1743607046082,0.1263464,86415.0,86414.0,0.6184]
[1743607046487,0.001,86415.0,86414.0,0.6184]
[1743607046686,0.1242,86416.0,86414.0,0.6184]
[1743607046889,0.001,86416.0,86414.0,0.6184]
[1743607047195,0.08848,86432.0,86414.0,0.6184]
[1743607047489,0.1316,86422.0,86414.0,0.6184]
[1743607047792,0.1224,86421.0,86414.0,0.6184]
[1743607047988,0.1234,86421.0,86414.0,0.6184]
[1743607048189,0.25606024,86420.0,86414.0,0.6184]
[1743607048488,0.25706024,86420.0,86414.0,0.6184]
[1743607049385,0.25706024,86420.0,86414.0,0.3614]
[1743607049693,0.57168,86419.0,86414.0,0.0006]
[1743607049995,0.57168,86419.0,86406.0,0.00017361]
[1743607050229,0.25051195,86418.0,86406.0,0.36097361]
[1743607050398,0.25051195,86418.0,86414.0,0.3608]
[1743607050586,0.25051195,86418.0,86415.0,0.2554]
[1743607050587,0.37111195,86418.0,86415.0,0.2554]
[1743607051087,0.0004,86537.0,86415.0,0.2554]
[1743607051088,0.00613911,86417.0,86415.0,0.2554]
[1743607051586,0.13407778,86416.0,86415.0,0.1317]
[1743607051788,0.26287778,86416.0,86415.0,0.1317]
[1743607051982,0.25239785,86421.0,86415.0,0.2554]
[1743607052184,0.13179785,86416.0,86415.0,0.2554]
[1743607052482,0.1275,86420.0,86415.0,0.1317]
[1743607052686,0.25929785,86420.0,86414.0,0.3608]
[1743607052888,0.1206,86419.0,86414.0,0.3608]
[1743607053187,0.24570592,86419.0,86415.0,0.1249]
[1743607053382,0.1157285,86416.0,86415.0,0.2464]
[1743607053788,0.1157406,86407.0,86396.0,0.3608]
[1743607054000,0.1157406,86407.0,86406.0,0.00017361]
[1743607054196,0.24022393,86407.0,86406.0,0.00017361]
[1743607054696,0.48972393,86407.0,86406.0,1e-08]
[1743607054995,0.49989658,86407.0,86406.0,1e-08]
[1743607055491,0.50089658,86407.0,86406.0,1e-08]
[1743607055889,0.65089658,86407.0,86406.0,1e-08]
[1743607056886,0.84299658,86407.0,86406.0,1e-08]
[1743607057490,0.84910692,86407.0,86406.0,1e-08]
[1743607058601,0.84910692,86407.0,86406.0,0.11574191]
[1743607058602,0.49683427,86407.0,86406.0,0.11574191]
[1743607058803,0.24733427,86407.0,86406.0,1e-08]
[1743607058995,0.24122393,86407.0,86406.0,0.00060001]
[1743607059396,0.36432393,86407.0,86406.0,0.00060001]
[1743607059700,0.24122393,86407.0,86406.0,0.36734191]
[1743607060199,0.24122393,86407.0,86406.0,0.25160001]
[1743607060503,0.49582393,86407.0,86406.0,0.12300001]
[1743607060693,0.24122393,86407.0,86406.0,0.23814191]
[1743607060894,0.24122393,86407.0,86406.0,0.23878191]
[1743607061908,0.24122393,86407.0,86406.0,0.36738191]
[1743607062404,0.24122393,86407.0,86406.0,0.25164001]
[1743607062597,0.49442393,86407.0,86406.0,0.25164001]
[1743607062798,0.49442393,86407.0,86406.0,0.00064001]
[1743607063101,0.62332393,86407.0,86406.0,0.00064001]
[1743607063906,0.12548333,86407.0,86406.0,0.16638191]
[1743607064204,0.10362833,86413.0,86412.0,0.1157339]
[1743607064410,0.17288712,86424.0,86417.0,0.1157272]
[1743607064710,0.17288712,86424.0,86423.0,0.1157191]
[1743607064908,0.20725667,86430.0,86428.0,0.1157111]
[1743607065105,0.20793667,86430.0,86429.0,0.7383111]
[1743607065308,0.20725667,86447.0,86434.0,0.0578518]
[1743607065502,0.32294627,86447.0,86446.0,0.1156884]
[1743607065697,0.32294627,86447.0,86446.0,0.6471684]
[1743607065698,0.20785668,86447.0,86446.0,0.6471684]
[1743607066005,0.32294367,86447.0,86446.0,0.6471684]
[1743607066202,0.32294367,86447.0,86446.0,0.53148]
[1743607066405,0.32362367,86447.0,86446.0,0.53148]
[1743607066604,0.45727361,86447.0,86446.0,0.36148]
[1743607068508,0.25001694,86447.0,86446.0,0.36148]
[1743607068716,0.25001694,86447.0,86446.0,0.46148]
[1743607069103,0.00068,86447.0,86446.0,0.7169684]
[1743607069308,0.0578427,86450.0,86449.0,0.1735175]
[1743607069501,0.0578427,86450.0,86449.0,0.4341975]
[1743607069912,0.24716511,86454.0,86452.0,0.115679]
[1743607070106,0.115679,86454.0,86453.0,0.735279]
[1743607070311,0.115679,86454.0,86453.0,0.965999]
[1743607072213,0.115679,86454.0,86453.0,0.85032]